Cogmind - Beta 9.4 @@@ ROGUE MODE // 2020.03.07 @ 13:49:08 Player: David Result: Self-destructed Performance ------------- Evolutions (1) 500 Regions Visited (2) 400 Robots Destroyed (10) 50 Value Destroyed (143) 143 Prototype IDs (0) 0 Alien Tech Used (0) 0 Bonus (0) 0 TOTAL SCORE: 1093 Bonus ------- None Cogmind --------- Core Integrity 366/400 Matter 179/300 Energy 125/125 System Corruption 0% Temperature Cool (0) Movement Rolling (100) Location -9/Materials Parts ------- > --- POWER (1) -------- Light Ion Engine > --- PROPULSION (2) --- Compact Wheel > --- UTILITY (4) ------ Visual Processing Unit Sensor Array Targeting Computer Targeting Computer > --- WEAPON (2) ------- Light Assault Rifle Light Assault Rifle > --- INVENTORY (4) ---- Mining Laser Peak State ------------ > --- POWER ------------ Light Ion Engine > --- PROPULSION ------- Flight Unit Flight Unit > --- UTILITY ---------- Visual Processing Unit Sensor Array Targeting Computer Targeting Computer > --- WEAPON ----------- Light Assault Rifle Light Assault Rifle > --- INVENTORY -------- Compact Wheel Mining Laser [Rating: 10] Favorites ----------- Power Ion Engine Engine Ion Engine Propulsion Flight Unit Wheel Wheel Flight Unit Flight Unit Utility Targeting Computer Device Sensor Array Storage Medium Storage Unit Processor Targeting Computer Weapon Light Assault Rifle Ballistic Gun Light Assault Rifle Special Weapon Mining Laser Build | -11 -10 -9 ------- Run | Scr Mat Mat Slots Evolved 2 | . . 2 Power . | . . . Propulsion . | . . . Utility 2 | . . 2 Weapon . | . . . Parts Attached 23 | 5 13 5 Power 3 | 1 2 . Engine 3 | 1 2 . Core . | . . . Reactor . | . . . Propulsion 8 | 2 3 3 Treads . | . . . Leg . | . . . Wheel 3 | 2 . 1 Hover . | . . . Flight 5 | . 3 2 Utility 6 | . 4 2 Device 1 | . 1 . Storage 1 | . 1 . Processor 4 | . 2 2 Hackware . | . . . Protection . | . . . Artifact . | . . . Weapon 6 | 2 4 . Energy Gun . | . . . Energy Cannon . | . . . Ballistic Gun 5 | 2 3 . Ballistic Cannon . | . . . Launcher . | . . . Special Weapon 1 | . 1 . Impact Weapon . | . . . Slashing Weapon . | . . . Piercing Weapon . | . . . Special Melee Weapon . | . . . Unidentified Prototypes . | . . . Parts Lost 7 | . 5 2 Power 1 | . 1 . Propulsion 4 | . 2 2 Utility . | . . . Weapon 2 | . 2 . Highest Loss Streak 5 | . 5 2 Average Slot Usage (%) 73 | . 68 94 Engine 12 | . 13 11 Wheel 13 | . 16 1 Flight 11 | . 9 16 Device 3 | . 1 11 Processor 7 | . 1 33 Ballistic Gun 24 | . 25 22 Naked Turns 15 | . 15 . Heaviest Build 8 | 8 8 6 Greatest Support 26 | 26 26 16 Greatest Overweight (x) 1 | . . 1 Average Overweight (x) . | . . . Largest Inventory Capacity 8 | 4 8 4 Average Capacity 4 | 4 4 4 Most Carried 4 | 4 4 3 Average Carried 2 | . 2 1 Final Capacity 4 | 4 4 4 Final Carried 4 | 1 4 1 Class Distribution -------------------- 56% | Mutant 43% | Scavenger-Mutant Dominant Class ---------------- Mutant | -10/Materials Scavenger-Mutant | -9/Materials Resources | -11 -10 -9 ----------- Run | Scr Mat Mat Matter Collected 412 | 254 158 . Remotely . | . . . Salvage Created 224 | . 194 30 Parts 25 | . 24 1 Haulers Intercepted 1 | . 1 . Recyclers Shooed . | . . . Parts Field Recycled . | . . . Retrieved Matter . | . . . Parts Self-Destructed . | . . . Prevented . | . . . Kills | -11 -10 -9 ------- Run | Scr Mat Mat Combat Hostiles Destroyed 7 | . 7 . Guns 4 | . 4 . AOE 3 | . 3 . Classes Destroyed 5 | . 4 1 Worker 1 | . . 1 Hauler 1 | . 1 . Watcher 1 | . 1 . Swarmer 6 | . 6 . Grunt 1 | . 1 . Best Kill Streak 4 | . 4 1 Combat Bots Only 4 | . 4 . Max Kills in Single Turn 3 | . 3 1 Gunslinging . | . . . Exploded 3 | . 3 . Melee . | . . . Uniques/NPCs Destroyed . | . . . Combat | -11 -10 -9 -------- Run | Scr Mat Mat Damage Taken 652 | . 505 147 Core 213 | . 179 34 Absorbed by Shields . | . . . Core Remaining (%) 64 | 100 28 . Volleys Fired 44 | 1 37 6 Largest 2 | 2 2 2 Hottest 40 | 40 40 40 Shots Fired 88 | 2 74 12 Gun 88 | 2 74 12 Cannon . | . . . Launcher . | . . . Special . | . . . Kinetic 88 | 2 74 12 Thermal . | . . . Explosive . | . . . Electromagnetic . | . . . Robot Hit Streak 6 | 1 6 3 Robot Miss Streak 4 | 1 4 2 Penetration Max . | . . . Secondary Targets . | . . . Shots Hit Robots 38 | 1 30 7 Core Hits 23 | 1 17 5 Critical Hits . | . . . Critical Kills . | . . . Critical Parts Destroyed . | . . . Melee Attacks . | . . . Impact . | . . . Slashing . | . . . Piercing . | . . . Sneak Attacks . | . . . Combat Hostiles . | . . . Follow-up Attacks . | . . . Damage Inflicted 431 | 18 327 86 Guns 272 | 18 216 38 Cannons . | . . . Explosions 159 | . 111 48 Melee . | . . . Ramming . | . . . Kinetic 272 | 18 216 38 Thermal . | . . . Explosive . | . . . Electromagnetic 159 | . 111 48 Impact . | . . . Slashing . | . . . Piercing . | . . . Highest Corruption 1 | . 1 . Average Corruption 1 | . 1 . Corruption Purged . | . . . Overload Shots . | . . . Overflow Damage 21 | . 21 . Projectiles . | . . . Explosions 21 | . 21 . Melee . | . . . Knockbacks . | . . . Impact . | . . . Kinetic . | . . . Secondary . | . . . Self-Inflicted Damage 113 | . 113 . Shots 3 | . 3 . Rammed . | . . . Targets Rammed . | . . . Kicked . | . . . Crushed . | . . . Highest Temperature 8 | . 8 3 Average Temperature 4 | . 5 1 Received Heat Transfer 60 | . . 60 Siege Activations . | . . . Robots Corrupted . | . . . Combat Hostiles . | . . . Parts Fried . | . . . Impact Corruptions . | . . . Robots Melted . | . . . Combat Hostiles . | . . . Parts Melted . | . . . Heat Transferred . | . . . Parts Sabotaged . | . . . Parts Stolen . | . . . Parts Stripped . | . . . Power Chain Reactions 1 | . 1 . Missiles Intercepted . | . . . Alert | -11 -10 -9 ------- Run | Scr Mat Mat Peak Influence 214 | . 214 89 Average Influence 57 | . 70 36 Maximum Alert Level 1 | . 1 . Low Security (%) 98 | 100 97 100 Level 1 1 | . 2 . Level 2 . | . . . Level 3 . | . . . Level 4 . | . . . Level 5 . | . . . High Security . | . . . Max Security . | . . . Squads Dispatched . | . . . Investigation . | . . . Extermination . | . . . Reinforcement . | . . . Assault . | . . . Garrison . | . . . Intercept . | . . . Construction Impeded . | . . . Haulers Reinforced . | . . . Stealth | -11 -10 -9 --------- Run | Scr Mat Mat Distress Signals 1 | . . 1 Communications Jammed . | . . . Distress Signals . | . . . Times Spotted 20 | . 9 11 Peak Tracking Total 11 | . 4 11 Tactical Retreats 1 | . . 1 Traps | -11 -10 -9 ------- Run | Scr Mat Mat Traps Triggered . | . . . Indirectly . | . . . Trap Hack Attempts . | . . . Triggered . | . . . Disarmed . | . . . Reprogrammed . | . . . Reused . | . . . Traps Extracted . | . . . Installed . | . . . Triggered . | . . . Machines | -11 -10 -9 ---------- Run | Scr Mat Mat Machines Disabled 3 | . 2 1 Max in Single Turn 2 | . 2 1 Machines Sabotaged . | . . . Garrisons Compromised . | . . . Overloaded Fab Kills . | . . . Fab Network Shutdowns . | . . . Hacking | -11 -10 -9 --------- Run | Scr Mat Mat Machines Accessed 9 | . 8 1 Terminals 6 | . 6 . Fabricators . | . . . Repair Stations 1 | . . 1 Recycling Units 2 | . 2 . Scanalyzers . | . . . Garrison Access . | . . . Total Hacks 13 | . 9 4 Successful 9 | . 5 4 Failed 4 | . 4 . Catastrophic 1 | . 1 . Database Lockouts . | . . . Manual . | . . . Terminals 7 | . 7 . Fabricators . | . . . Repair Stations 4 | . . 4 Recycling Units 2 | . 2 . Scanalyzers . | . . . Garrison Access . | . . . Terminal Hacks 3 | . 3 . Locate Traps 2 | . 2 . Zone Layout 1 | . 1 . Fabricator Hacks . | . . . Repair Station Hacks 4 | . . 4 Scan Component 2 | . . 2 Repair 2 | . . 2 Recycling Unit Hacks 2 | . 2 . Retrieve Components 2 | . 2 . Scanalyzer . | . . . Garrison Access Hacks . | . . . Unauthorized Hacks . | . . . Terminals . | . . . Fabricators . | . . . Repair Stations . | . . . Recycling Units . | . . . Scanalyzers . | . . . Garrison Access . | . . . Data Cores Recovered . | . . . Used . | . . . Hacking Detections 6 | . 6 . Full Trace Events . | . . . Feedback Events . | . . . Feedback Blocked . | . . . Robot Schematics Acquired . | . . . Robots Built . | . . . Matter . | . . . Time . | . . . Total Robot Build Rating . | . . . Part Schematics Acquired . | . . . Parts Built . | . . . Matter . | . . . Time . | . . . Total Part Build Rating . | . . . Parts Repaired 2 | . . 2 Time 52 | . . 52 Parts Recycled . | . . . Recycled Matter . | . . . Retrieved Matter . | . . . Retrieved Components 1 | . 1 . Parts Scanalyzed . | . . . Part Schematics Acquired . | . . . Parts Damaged . | . . . Bothacking | -11 -10 -9 ------------ Run | Scr Mat Mat Used RIF Installer . | . . . Robots Hacked . | . . . Non-combat . | . . . Combat . | . . . Robot Hacks Applied . | . . . Relay Couplers Released . | . . . Robots Rewired . | . . . Allies Hacked . | . . . Hacks Repelled . | . . . Allies | -11 -10 -9 -------- Run | Scr Mat Mat Total Allies . | . . . Largest Group . | . . . Highest-Rated Group . | . . . Highest-Rated Ally . | . . . Total Orders . | . . . Ally Attacks . | . . . Total Damage . | . . . Kills . | . . . Allies Corrupted . | . . . Allies Melted . | . . . Intel | -11 -10 -9 ------- Run | Scr Mat Mat Robot Analysis Total . | . . . Derelict Logs Recovered . | . . . Drone Launches . | . . . Drone Recoveries . | . . . Exploration | -11 -10 -9 ------------- Run | Scr Mat Mat Turns Passed 656 | 68 475 113 Spaces Moved 702 | 67 550 85 Core 36 | 14 22 . Treads . | . . . Legs . | . . . Wheels 281 | 53 219 9 Hover . | . . . Flight 385 | . 309 76 Fastest Speed 37 | 50 37 37 Average Speed 59 | 81 58 44 Slowest Speed 120 | 90 90 120 Overloaded Moves . | . . . Propulsion Burnouts . | . . . Robots Hopped 6 | . 6 . Cave-ins Triggered . | . . . Exploration Rate (%) 30 | 4 70 17 Regions Visited 2 Branch Regions . Pre-discovered Areas . | . . . Known Exits Taken . | . . . Unknown Exits Taken 2 | 1 1 . Scrap Searched . | . . . Spaces Dug . | . . . Terrain Destroyed 4 | . 4 . Melee . | . . . Projectile . | . . . AOE 4 | . 4 . Actions | -11 -10 -9 --------- Run | Scr Mat Mat Total 860 | 78 632 150 Wait 70 | . 18 52 Move 688 | 66 537 85 Hop 6 | . 6 . Pick Up 21 | 6 13 2 Fast Attach 4 | . 4 . Attach 17 | 5 7 5 Detach 2 | . 2 . Swap 2 | . 2 . Drop 6 | . 6 . Fire 44 | 1 37 6 Melee . | . . . Ram . | . . . Kick . | . . . Crush . | . . . Escape Stasis . | . . . Rewire . | . . . Trap . | . . . Miscellaneous . | . . . Route ------- -11/Scrapyard -10/Materials (discovered 2 exits: *Mat / [*Min]) -9/Materials History --------- Turn | Location | Event 2 | -11/Scrapyard | Met Revision 17 5 | -11/Scrapyard | Discovered new exit (range 16) 69 | -11/Scrapyard | Entered Materials 308 | -10/Materials | Build established: Mutant 357 | -10/Materials | Core integrity fell below 50% 387 | -10/Materials | Lost 5 parts (1p2n2w) 430 | -10/Materials | Discovered new exit (range 16) 540 | -10/Materials | Discovered new exit (range 8) 544 | -10/Materials | Entered another Materials area 544 | -9/Materials | Evolved 2 slots: Utility x2 578 | -9/Materials | Repaired Flight Unit 606 | -9/Materials | Repaired Flight Unit 657 | -9/Materials | Self-destructed Last Messages --------------- 00578_ Acquired Flight Unit. 00580_ Connecting with Repair Station... >>Scan(Flight Unit) Scanning Flight Unit... Ready to Repair: Flight Unit Rating: 1 Time: 26 >>Repair Repairing Flight Unit... ETC: 26 00606_ Repair station completes Flight Unit repairs. 00606_ Acquired Flight Unit. 00620_ K-01 Serf collects debris. 00627_ Neutrino Reactor explodes. 00627_ K-01 Serf destroyed. 00631_ U-05 Engineer lays Concrete. 00633_ W-16 Scout sends out distress signal. 00634_ U-05 Engineer lays Concrete. 00646_ Flight Unit destroyed. Map ----- +----------------------------------------------------+ | ?????????????????????????????????????????????????? | | ?????????????????????????????????????????????????? | | ?????????????????????????????????????????????????? | | ?????????????????????????????????????????????????? | | ?????????????????????????????????????????????????? | | ?????????????????????????????????????????????????? | | ?????????????????????????????????????????????????? | | ?????????????????????????????????????????????????? | | ?????????????????????????????????????????????????? | | ?????????????????????????????????????????????????? | | ?????????????????????????????????????????????????? | | ?????????????????????????????????????????????????? | | ????????????????????????? "??????????????????????? | | ????????????????????????? "??????????????????????? | | ????????????????????????? "??????????????????????? | | ????????????????????????? ??????????????????????? | | ?????????????????????????????????????????????????? | | ???????????????????????###/########+##???????????? | | ??????????????????????? ? ? #???????????? | | ??????????????????????? #???????????? | | ???????????????????????? #???????????? | | ????????????????########### #???????????? | | ????????????????# # ? ? ########??##+ | | ????????????????# # #??# | | ????????????????# + #### | | ????????????????# """ """@# | | ????????????????? """ """ # #######+### | | ??????????????????""" """ # # # | | ??????????????????k # + # | | ????????????????? = # ### """"""" # | | ?????????????????Y######### #?# """"""" # | | ??????????????????????????# #?# """"""" # | | ?????????????????????????# ## """"""" # * | | ?????????????????????????# ## """"""" # % | | ?????????????????????????# ## # ^ | | ?????????????????????????## ########???## | | ??????????????????????????# #???????????# [[ | | ??????????????????????????# #???????????# [= | | ??????????????????????????# #???????????+ | | ??????????????????????????# #???????????# | | ??????????????????????????# #???????????# | | ??????????????????????????? ????????????# | | ??????????????????????????? ????????????# "" | | ??????????????????????????? ????????????# T" | | ??????????????????????????? ????????????# "" | | ??????????????????????????? ????????????# | | ??????????????????????????? ????????????# | | ??????????????????????????? ????????????##+####### | | ??????????????????????????? ?????????????????????? | | ?????????????????????????????????????????????????? | +----------------------------------------------------+ Best States ------------- Heat Dissipation 28 Energy Generation 10 Energy Capacity 250 Matter Stores 300 Matter Capacity 300 Sight Range 18 Robot Scan Range 10 Terrain Scan Density 10 Evasion (%) 62 Targeting Accuracy 10 Item Schematics ----------------- None Robot Schematics ------------------ None Fabricated ------------ Nothing Alien Tech Used ----------------- None Achievements -------------- None Challenges ------------ None Game ------ Seed TeslaMiningBroadsword Manual? 0 Play Time 00:12:20 Cumulative 47.2 hours Start 2020.03.07 @ 13:38:39 End 2020.03.07 @ 13:49:08 Sessions 1 Manual Loads 0 Difficulty Rogue Special Mode None Game No. 72 Rogue 72 Adventurer 0 Explorer 0 Win Type - Total 0 Types 0/0/0/0/0/0/0 Lore% 29 Gallery% 39 Achievement% 20 Wizard Run 0 Options --------- ASCII 0 Keyboard 0 Movement Mouse Keybinds 0 Fullscreen 1 Font 18/Smallcaps Map View 76x50 Tactical HUD 1 Map Filters NONE Filters NONE Steam 1 RUN: 23269987-ea64-404e-a02a-088073574e9c